lending/lending_fUSD_20250516
["ID","MTS","AMOUNT","RATE_DAILY","PERIOD"]
[361264090,1747404638786,-400.0,0.00016438,2]
[361264092,1747404638796,-400.0,0.00016438,2]
[361264093,1747404638805,-601.97,0.00016438,2]
[361264094,1747404638815,-695.25,0.00016438,2]
[361264095,1747404638825,-400.0,0.00016438,2]
[361264096,1747404638839,-526.8065255,0.00016438,2]
[361264097,1747404638849,-400.0,0.00016438,2]
[361264098,1747404638859,-918.23,0.00016438,2]
[361264099,1747404638869,-400.0,0.00016438,2]
[361264100,1747404638879,-400.0,0.00016438,2]
[361264101,1747404638889,-400.0,0.00016438,2]
[361264102,1747404638900,-400.0,0.00016438,2]
[361264103,1747404638909,-545.41,0.00016438,2]
[361264104,1747404638919,-1365.56,0.00016438,2]
[361264105,1747404638929,-791.64,0.00016438,2]
[361264106,1747404638939,-514.76,0.00016438,2]
[361264107,1747404638949,-400.0,0.00016438,2]
[361264108,1747404638959,-479.05,0.00016438,2]
[361264109,1747404638969,-400.0,0.00016438,2]
[361264110,1747404638979,-1127.18,0.00016438,2]
[361264111,1747404638989,-400.0,0.00016438,2]
[361264113,1747404638999,-637.7,0.00016438,2]
[361264114,1747404639009,-620.44,0.00016438,2]
[361264116,1747404639019,-400.0,0.00016438,2]
[361264118,1747404639028,-400.0,0.00016438,2]
[361264120,1747404639037,-409.28,0.00016438,2]
[361264122,1747404639047,-400.0,0.00016438,2]
[361264124,1747404639057,-400.0,0.00016438,2]
[361264126,1747404639066,-400.0,0.00016438,2]
[361264128,1747404639076,-1202.63,0.00016438,2]
[361264130,1747404639085,-282.14338434,0.00016438,2]
[361264132,1747404639095,-400.0,0.00016438,2]
[361264134,1747404639104,-1129.25,0.00016438,2]
[361264136,1747404639114,-1454.28,0.00016438,2]
[361264138,1747404639123,-500.0,0.00016438,2]
[361264140,1747404639134,-400.0,0.00016438,2]
[361264142,1747404639144,-400.0,0.00016438,2]
[361264144,1747404639154,-431.37,0.00016438,2]
[361264146,1747404639163,-615.19,0.00016438,2]
[361264148,1747404639173,-400.0,0.00016438,2]
[361264150,1747404639182,-400.0,0.00016438,2]
[361264152,1747404639192,-400.0,0.00016438,2]
[361264154,1747404639201,-400.0,0.00016438,2]
[361264156,1747404639210,-400.0,0.00016438,2]
[361264159,1747404639220,-660.22,0.00016438,2]
[361264161,1747404639229,-400.0,0.00016438,2]
[361264163,1747404639239,-528.8,0.00016438,2]
[361264165,1747404639249,-400.0,0.00016438,2]
[361264167,1747404639259,-400.0,0.00016438,2]
[361264169,1747404639269,-400.0,0.00016438,2]
[361264171,1747404639280,-400.0,0.00016438,2]
[361264173,1747404639289,-400.3,0.00016438,2]
[361264175,1747404639299,-400.0,0.00016438,2]
[361264177,1747404639309,-400.0,0.00016438,2]
[361264179,1747404639319,-400.0,0.00016438,2]
[361264181,1747404639329,-400.0,0.00016438,2]
[361264183,1747404639339,-400.0,0.00016438,2]
[361264185,1747404639349,-400.0,0.00016438,2]
[361264187,1747404639360,-400.0,0.00016438,2]
[361264189,1747404639370,-400.0,0.00016438,2]
[361264191,1747404639381,-703.15,0.00016438,2]
[361264193,1747404639391,-400.0,0.00016438,2]
[361264195,1747404639401,-400.0,0.00016438,2]
[361264197,1747404639410,-400.0,0.00016438,2]
[361264199,1747404639420,-606.93,0.00016438,2]
[361264201,1747404639430,-235.79649271,0.00016438,2]
[361264203,1747404639439,-400.0,0.00016438,2]
[361264205,1747404639449,-400.0,0.00016438,2]
[361264207,1747404639458,-501.94873115,0.00016438,2]
[361264209,1747404639468,-896.76,0.00016438,2]
[361264211,1747404639477,-1089.75,0.00016438,2]
[361264213,1747404639487,-400.0,0.00016438,2]
[361264215,1747404639496,-420.69395005,0.00016438,2]
[361264217,1747404639506,-622.85,0.00016438,2]
[361264219,1747404639515,-1423.28,0.00016438,2]
[361264221,1747404639526,-449.1,0.00016438,2]
[361264223,1747404639535,-400.0,0.00016438,2]
[361264225,1747404639545,-400.0,0.00016438,2]
[361264227,1747404639554,-400.0,0.00016438,2]
[361264229,1747404639563,-400.0,0.00016438,2]
[361264231,1747404639573,-400.0,0.00016438,2]
[361264234,1747404639582,-158.986212,0.00016438,2]
[361264235,1747404639592,-400.0,0.00016438,2]
[361264238,1747404639601,-400.0,0.00016438,2]
[361264239,1747404639611,-401.57370017,0.00016438,2]
[361264242,1747404639620,-193.09862644,0.00016438,2]
[361264244,1747404639630,-2188.82,0.00016438,2]
[361264246,1747404639640,-929.07,0.00016438,2]
[361264248,1747404639650,-400.0,0.00016438,2]
[361264250,1747404639659,-400.0,0.00016438,2]
[361264252,1747404639669,-415.66,0.00016438,2]
[361264254,1747404639679,-973.36,0.00016438,2]
[361264256,1747404639689,-400.0,0.00016438,2]
[361264258,1747404639698,-220.79048957,0.00016438,2]
[361264260,1747404639708,-400.0,0.00016438,2]
[361264262,1747404639717,-400.0,0.00016438,2]
[361264264,1747404639727,-443.99,0.00016438,2]
[361264266,1747404639737,-401.47966043,0.00016438,2]
[361264275,1747404639747,-400.0,0.00016438,2]
[361264276,1747404639853,-439.11,0.00016438,2]
[361264277,1747404639863,-795.45,0.00016438,2]
[361264278,1747404639872,-400.0,0.00016438,2]
[361264279,1747404639882,-591.38,0.00016438,2]
[361264280,1747404639891,-464.98,0.00016438,2]
[361264281,1747404639900,-400.0,0.00016438,2]
[361264282,1747404639910,-509.22,0.00016438,2]
[361264283,1747404639919,-274.55662777,0.00016438,2]
[361264284,1747404639929,-400.0,0.00016438,2]
[361264286,1747404639939,-1157.13,0.00016438,2]
[361264288,1747404639949,-400.0,0.00016438,2]
[361264289,1747404639959,-400.0,0.00016438,2]
[361264290,1747404639968,-495.63,0.00016438,2]
[361264291,1747404639978,-760.77,0.00016438,2]
[361264293,1747404639987,-400.0,0.00016438,2]
[361264294,1747404639997,-400.0,0.00016438,2]
[361264295,1747404640006,-400.0,0.00016438,2]
[361264296,1747404640017,-400.0,0.00016438,2]
[361264297,1747404640027,-609.71,0.00016438,2]
[361264298,1747404640036,-519.82,0.00016438,2]
[361264299,1747404640046,-400.0,0.00016438,2]
[361264300,1747404640055,-400.0,0.00016438,2]
[361264301,1747404640065,-400.0,0.00016438,2]
[361264302,1747404640075,-400.0,0.00016438,2]
[361264303,1747404640085,-507.98,0.00016438,2]
[361264304,1747404640094,-400.0,0.00016438,2]
[361264305,1747404640104,-400.0,0.00016438,2]
[361264306,1747404640113,-560.25,0.00016438,2]
[361264308,1747404640123,-151.0,0.00016438,2]
[361264310,1747404640132,-400.0,0.00016438,2]
[361264311,1747404640141,-863.95,0.00016438,2]
[361264312,1747404640150,-151.0,0.00016438,2]
[361264313,1747404640159,-151.0,0.00016438,2]
[361264314,1747404640169,-1839.18,0.00016438,2]
[361264315,1747404640177,-400.0,0.00016438,2]
[361264316,1747404640185,-400.0,0.00016438,2]
[361264317,1747404640195,-402.94,0.00016438,2]
[361264318,1747404640204,-400.0,0.00016438,2]
[361264319,1747404640213,-400.0,0.00016438,2]
[361264320,1747404640222,-484.3015501,0.00016438,2]
[361264321,1747404640232,-478.92,0.00016438,2]
[361264322,1747404640241,-400.0,0.00016438,2]
[361264323,1747404640251,-400.0,0.00016438,2]
[361264324,1747404640260,-1458.83,0.00016438,2]
[361264325,1747404640270,-401.20203514,0.00016438,2]
[361264326,1747404640280,-400.0,0.00016438,2]
[361264327,1747404640289,-400.0,0.00016438,2]
[361264328,1747404640298,-503.75,0.00016438,2]
[361264329,1747404640308,-151.0,0.00016438,2]
[361264330,1747404640317,-819.31,0.00016438,2]
[361264332,1747404640326,-400.0,0.00016438,2]
[361264334,1747404640336,-1097.49,0.00016438,2]
[361264335,1747404640345,-400.0,0.00016438,2]
[361264336,1747404640354,-1269.61,0.00016438,2]
[361264337,1747404640363,-400.0,0.00016438,2]
[361264338,1747404640372,-400.0,0.00016438,2]
[361264339,1747404640386,-400.0,0.00016438,2]
[361264340,1747404640396,-213.60127422,0.00016438,2]
[361264341,1747404640406,-400.0,0.00016438,2]
[361264342,1747404640416,-400.0,0.00016438,2]
[361264343,1747404640427,-875.79,0.00016438,2]
[361264344,1747404640437,-400.0,0.00016438,2]
[361264345,1747404640446,-400.0,0.00016438,2]
[361264346,1747404640455,-194.63625805,0.00016438,2]
[361264347,1747404640465,-908.69,0.00016438,2]
[361264348,1747404640475,-1241.78,0.00016438,2]
[361264349,1747404640484,-577.29,0.00016438,2]
[361264350,1747404640494,-400.0,0.00016438,2]
[361264351,1747404640503,-400.0,0.00016438,2]
[361264352,1747404640513,-416.96,0.00016438,2]
[361264353,1747404640524,-2078.51,0.00016438,2]
[361264354,1747404640534,-378.76817875,0.00016438,2]
[361264355,1747404640544,-387.20051609,0.00016438,2]
[361264356,1747404640554,-558.38,0.00016438,2]
[361264357,1747404640563,-681.76,0.00016438,2]
[361264358,1747404640572,-522.92046522,0.00016438,2]
[361264359,1747404640582,-400.0,0.00016438,2]
[361264360,1747404640592,-400.0,0.00016438,2]
[361264362,1747404640601,-1058.35,0.00016438,2]
[361264363,1747404640611,-400.0,0.00016438,2]
[361264365,1747404640620,-1009.18,0.00016438,2]
[361264367,1747404640630,-400.0,0.00016438,2]
[361264369,1747404640639,-400.0,0.00016438,2]
[361264371,1747404640651,-283.61665759,0.00016438,2]
[361264373,1747404640662,-616.3,0.00016438,2]
[361264375,1747404640671,-400.0,0.00016438,2]
[361264376,1747404640681,-2367.56,0.00016438,2]
[361264377,1747404640690,-400.0,0.00016438,2]
[361264378,1747404640700,-761.54,0.00016438,2]
[361264379,1747404640709,-400.0,0.00016438,2]
[361264380,1747404640719,-400.0,0.00016438,2]
[361264381,1747404640728,-400.0,0.00016438,2]
[361264382,1747404640738,-400.0,0.00016438,2]
[361264383,1747404640748,-400.0,0.00016438,2]
[361264384,1747404640758,-400.0,0.00016438,2]
[361264385,1747404640769,-1683.97,0.00016438,2]
[361264386,1747404640778,-400.0,0.00016438,2]
[361264387,1747404640787,-483.29,0.00016438,2]
[361264388,1747404640797,-400.0,0.00016438,2]
[361264389,1747404640806,-400.0,0.00016438,2]
[361264390,1747404640815,-400.0,0.00016438,2]
[361264391,1747404640825,-400.0,0.00016438,2]
[361264392,1747404640834,-400.0,0.00016438,2]
[361264393,1747404640844,-400.0,0.00016438,2]
[361264394,1747404640853,-400.0,0.00016438,2]
[361264395,1747404640864,-425.48,0.00016438,2]
[361264396,1747404640873,-672.74,0.00016438,2]
[361264397,1747404640883,-645.79,0.00016438,2]
[361264398,1747404640892,-400.0,0.00016438,2]
[361264399,1747404640901,-400.0,0.00016438,2]
[361264400,1747404640910,-772.27,0.00016438,2]
[361264401,1747404640919,-609.6,0.00016438,2]
[361264402,1747404640928,-400.0,0.00016438,2]
[361264403,1747404640937,-1866.22,0.00016438,2]
[361264404,1747404640947,-438.74417138,0.00016438,2]
[361264405,1747404640955,-400.0,0.00016438,2]
[361264406,1747404640966,-1244.97,0.00016438,2]
[361264407,1747404640975,-400.0,0.00016438,2]
[361264408,1747404640984,-400.0,0.00016438,2]
[361264409,1747404640994,-401.46447323,0.00016438,2]
[361264410,1747404641003,-400.0,0.00016438,2]
[361264411,1747404641012,-168.23604186,0.00016438,2]
[361264412,1747404641023,-522.14,0.00016438,2]
[361264413,1747404641033,-603.39,0.00016438,2]
[361264414,1747404641043,-400.0,0.00016438,2]
[361264415,1747404641052,-400.0,0.00016438,2]
[361264416,1747404641062,-157.11954103,0.00016438,2]
[361264417,1747404641072,-563.69,0.00016438,2]
[361264418,1747404641081,-1079.55,0.00016438,2]
[361264419,1747404641091,-400.0,0.00016438,2]
[361264420,1747404641099,-400.0,0.00016438,2]
[361264421,1747404641109,-447.02,0.00016438,2]
[361264422,1747404641118,-968.04,0.00016438,2]
[361264423,1747404641128,-400.0,0.00016438,2]
[361264424,1747404641137,-2069.57,0.00016438,2]
[361264425,1747404641147,-400.0,0.00016438,2]
[361264426,1747404641157,-425.16,0.00016438,2]
[361264427,1747404641166,-400.0,0.00016438,2]
[361264428,1747404641176,-1355.46,0.00016438,2]
[361264429,1747404641185,-400.0,0.00016438,2]
[361264430,1747404641194,-1423.73,0.00016438,2]
[361264431,1747404641204,-1104.72,0.00016438,2]
[361264432,1747404641213,-507.40698127,0.00016438,2]
[361264433,1747404641223,-400.0,0.00016438,2]
[361264434,1747404641232,-400.0,0.00016438,2]
[361264435,1747404641242,-400.0,0.00016438,2]
[361264436,1747404641251,-400.0,0.00016438,2]
[361264437,1747404641260,-400.0,0.00016438,2]
[361264438,1747404641269,-400.0,0.00016438,2]
[361264439,1747404641280,-400.0,0.00016438,2]
[361264440,1747404641289,-400.0,0.00016438,2]
[361264441,1747404641298,-400.0,0.00016438,2]
[361264442,1747404641308,-400.0,0.00016438,2]
[361264443,1747404641317,-415.21,0.00016438,2]
[361264444,1747404641326,-400.0,0.00016438,2]
[361264445,1747404641336,-400.0,0.00016438,2]
[361264446,1747404641345,-693.76,0.00016438,2]
[361264447,1747404641354,-400.0,0.00016438,2]
[361264448,1747404641363,-400.0,0.00016438,2]
[361264449,1747404641373,-400.0,0.00016438,2]
[361264450,1747404641386,-400.0,0.00016438,2]
[361264451,1747404641395,-1088.32,0.00016438,2]
[361264452,1747404641405,-400.0,0.00016438,2]
[361264453,1747404641415,-400.0,0.00016438,2]
[361264454,1747404641425,-1131.67,0.00016438,2]
[361264455,1747404641434,-400.0,0.00016438,2]
[361264456,1747404641443,-743.2,0.00016438,2]
[361264457,1747404641453,-581.82,0.00016438,2]
[361264458,1747404641462,-307.42581783,0.00016438,2]
[361264459,1747404641471,-400.0,0.00016438,2]
[361264460,1747404641480,-401.17973101,0.00016438,2]
[361264461,1747404641489,-998.67,0.00016438,2]
[361264462,1747404641499,-400.0,0.00016438,2]
[361264463,1747404641508,-400.0,0.00016438,2]
[361264464,1747404641518,-709.89,0.00016438,2]
[361264465,1747404641527,-516.96,0.00016438,2]
[361264466,1747404641536,-400.0,0.00016438,2]
[361264467,1747404641545,-699.13,0.00016438,2]
[361264468,1747404641555,-400.0,0.00016438,2]
[361264469,1747404641564,-1733.59,0.00016438,2]
[361264470,1747404641574,-357.61311095,0.00016438,2]
[361264471,1747404641583,-400.0,0.00016438,2]
[361264472,1747404641593,-400.0,0.00016438,2]
[361264473,1747404641602,-351.89906209,0.00016438,2]
[361264474,1747404641611,-400.0,0.00016438,2]
[361264475,1747404641621,-400.0,0.00016438,2]
[361264476,1747404641630,-814.27,0.00016438,2]
[361264477,1747404641639,-400.0,0.00016438,2]
[361264478,1747404641648,-403.36,0.00016438,2]
[361264479,1747404641658,-400.0,0.00016438,2]
[361264480,1747404641667,-512.05274893,0.00016438,2]
[361264481,1747404641677,-400.0,0.00016438,2]
[361264482,1747404641687,-400.0,0.00016438,2]
[361264483,1747404641696,-1177.69,0.00016438,2]
[361264484,1747404641706,-400.0,0.00016438,2]
[361264485,1747404641715,-507.56,0.00016438,2]
[361264486,1747404641724,-400.0,0.00016438,2]
[361264487,1747404641733,-897.01,0.00016438,2]
[361264488,1747404641743,-400.0,0.00016438,2]
[361264489,1747404641753,-173.79836393,0.00016438,2]
[361264490,1747404641762,-555.85,0.00016438,2]
[361264491,1747404641772,-1075.87,0.00016438,2]
[361264492,1747404641784,-400.0,0.00016438,2]
[361264493,1747404641793,-549.17,0.00016438,2]
[361264494,1747404641803,-817.4,0.00016438,2]
[361264495,1747404641812,-400.0,0.00016438,2]
[361264496,1747404641822,-509.51,0.00016438,2]
[361264497,1747404641832,-1885.51,0.00016438,2]
[361264498,1747404641842,-400.0,0.00016438,2]
[361264499,1747404641851,-400.0,0.00016438,2]
[361264500,1747404641860,-400.0,0.00016438,2]
[361264501,1747404641870,-464.45,0.00016438,2]
[361264502,1747404641879,-400.0,0.00016438,2]
[361264503,1747404641888,-915.66,0.00016438,2]
[361264504,1747404641897,-400.0,0.00016438,2]
[361264505,1747404641906,-400.0,0.00016438,2]
[361264506,1747404641916,-400.0,0.00016438,2]
[361264507,1747404641925,-151.0,0.00016438,2]
[361264508,1747404641934,-400.0,0.00016438,2]
[361264509,1747404641944,-2004.43,0.00016438,2]
[361264510,1747404641953,-682.75,0.00016438,2]
[361264511,1747404641962,-151.0,0.00016438,2]
[361264512,1747404641971,-400.0,0.00016438,2]
[361264513,1747404641981,-400.0,0.00016438,2]
[361264514,1747404641991,-400.0,0.00016438,2]
[361264515,1747404642000,-566.7,0.00016438,2]
[361264516,1747404642009,-769.21,0.00016438,2]
[361264517,1747404642019,-476.14008986,0.00016438,2]
[361264518,1747404642028,-400.0,0.00016438,2]
[361264519,1747404642038,-751.01,0.00016438,2]
[361264520,1747404642047,-400.0,0.00016438,2]
[361264521,1747404642057,-400.0,0.00016438,2]
[361264522,1747404642067,-1215.99,0.00016438,2]
[361264523,1747404642077,-400.0,0.00016438,2]
[361264524,1747404642086,-400.0,0.00016438,2]
[361264525,1747404642095,-795.41,0.00016438,2]
[361264526,1747404642105,-400.0,0.00016438,2]
[361264527,1747404642114,-400.0,0.00016438,2]
[361264528,1747404642123,-400.0,0.00016438,2]
[361264529,1747404642132,-400.0,0.00016438,2]
[361264530,1747404642141,-400.0,0.00016438,2]
[361264531,1747404642151,-151.0,0.00016438,2]
[361264532,1747404642160,-151.0,0.00016438,2]
[361264533,1747404642171,-7712.94,0.00016438,2]
[361264534,1747404642180,-503.67267374,0.00016438,2]
[361264535,1747404642190,-3677.29,0.00016438,2]
[361264536,1747404642199,-292.83182273,0.00016438,2]
[361264537,1747404642209,-1421.22,0.00016438,2]
[361264538,1747404642218,-411.26591043,0.00016438,2]
[361264539,1747404642228,-999.65,0.00016438,2]
[361264540,1747404642237,-400.0,0.00016438,2]
[361264541,1747404642247,-400.0,0.00016438,2]
[361264542,1747404642256,-191721.02,0.00016438,2]
[361264543,1747404642265,-1454.27,0.00016438,2]
[361264544,1747404642275,-1851.15,0.00016438,2]
[361264545,1747404642284,-400.0,0.00016438,2]
[361264546,1747404642294,-531.48,0.00016438,2]
[361264547,1747404642303,-400.0,0.00016438,2]
[361264548,1747404642313,-400.0,0.00016438,2]
[361264549,1747404642322,-915.24,0.00016438,2]
[361264550,1747404642331,-410.63483184,0.00016438,2]
[361264551,1747404642341,-915.24,0.00016438,2]
[361264552,1747404642350,-915.24,0.00016438,2]
[361264553,1747404642359,-428.53630199,0.00016438,2]
[361264554,1747404642368,-915.24,0.00016438,2]
[361264555,1747404642378,-1026.03,0.00016438,2]
[361264556,1747404642392,-5976.88,0.00016438,2]
[361264557,1747404642402,-400.0,0.00016438,2]
[361264558,1747404642411,-400.0,0.00016438,2]
[361264559,1747404642421,-400.0,0.00016438,2]
[361264560,1747404642431,-400.0,0.00016438,2]
[361264561,1747404642440,-400.0,0.00016438,2]
[361264562,1747404642450,-1081.47,0.00016438,2]
[361264563,1747404642459,-383.70620248,0.00016438,2]
[361264564,1747404642468,-1571.59,0.00016438,2]
[361264565,1747404642478,-845.49,0.00016438,2]
[361264566,1747404642488,-849.93,0.00016438,2]
[361264567,1747404642498,-476.40651239,0.00016438,2]
[361264568,1747404642507,-539.42,0.00016438,2]
[361264569,1747404642516,-658.29,0.00016438,2]
[361264570,1747404642526,-400.0,0.00016438,2]
[361264571,1747404642535,-534.22,0.00016438,2]
[361264572,1747404642545,-1430.62,0.00016438,2]
[361264573,1747404642555,-400.0,0.00016438,2]
[361264574,1747404642565,-400.0,0.00016438,2]
[361264575,1747404642574,-1019.67,0.00016438,2]
[361264576,1747404642584,-403.86,0.00016438,2]
[361264577,1747404642594,-400.0,0.00016438,2]
[361264578,1747404642604,-400.0,0.00016438,2]
[361264579,1747404642615,-400.0,0.00016438,2]
[361264580,1747404642625,-925.61,0.00016438,2]
[361264581,1747404642635,-400.0,0.00016438,2]
[361264582,1747404642644,-400.0,0.00016438,2]
[361264583,1747404642654,-1284.87,0.00016438,2]
[361264584,1747404642663,-9708.85,0.00016438,2]
[361264585,1747404642674,-400.0,0.00016438,2]
[361264586,1747404642684,-533.62,0.00016438,2]
[361264587,1747404642693,-400.0,0.00016438,2]
[361264588,1747404642703,-1796.03,0.00016438,2]
[361264589,1747404642713,-400.0,0.00016438,2]
[361264590,1747404642722,-406.03175644,0.00016438,2]
[361264591,1747404642732,-400.0,0.00016438,2]
[361264592,1747404642742,-1811.79,0.00016438,2]
[361264593,1747404642752,-400.0,0.00016438,2]
[361264595,1747404642762,-898.38,0.00016438,2]
[361264596,1747404642771,-151.0,0.00016438,2]
[361264597,1747404642782,-400.0,0.00016438,2]
[361264598,1747404642792,-800.32,0.00016438,2]
[361264599,1747404642802,-400.0,0.00016438,2]
[361264600,1747404642813,-400.0,0.00016438,2]
[361264602,1747404642822,-1152.92,0.00016438,2]
[361264603,1747404642832,-232.697324,0.00016438,2]
[361264604,1747404642842,-3687.28,0.00016438,2]
[361264605,1747404642852,-19172.96,0.00016438,2]
[361264606,1747404642861,-557.52,0.00016438,2]
[361264607,1747404642871,-308.95610591,0.00016438,2]
[361264608,1747404642881,-566.41,0.00016438,2]
[361264609,1747404642890,-947.84,0.00016438,2]
[361264610,1747404642899,-861.66,0.00016438,2]
[361264611,1747404642909,-400.0,0.00016438,2]
[361264612,1747404642919,-400.84836759,0.00016438,2]
[361264613,1747404642929,-400.0,0.00016438,2]
[361264614,1747404642938,-196.2975376,0.00016438,2]
[361264615,1747404642948,-435.1893572,0.00016438,2]
[361264616,1747404642957,-497.2,0.00016438,2]
[361264617,1747404642967,-905.14,0.00016438,2]
[361264618,1747404642976,-143513.59,0.00016438,2]
[361264619,1747404642986,-684.75,0.00016438,2]
[361264620,1747404642996,-1970.57,0.00016438,2]
[361264621,1747404643005,-400.0,0.00016438,2]
[361264622,1747404643015,-7834.3,0.00016438,2]
[361264623,1747404643025,-14411.73,0.00016438,2]
[361264624,1747404643035,-1000.0,0.00016438,2]
[361264625,1747404643044,-699.76,0.00016438,2]
[361264626,1747404643053,-400.0,0.00016438,2]
[361264627,1747404643063,-727.93,0.00016438,2]
[361264628,1747404643072,-400.0,0.00016438,2]
[361264629,1747404643081,-400.0,0.00016438,2]
[361264630,1747404643091,-6742.05,0.00016438,2]
[361264631,1747404643100,-1059.37,0.00016438,2]
[361264632,1747404643109,-702.99,0.00016438,2]
[361264633,1747404643118,-400.0,0.00016438,2]
[361264634,1747404643127,-1906.55,0.00016438,2]
[361264635,1747404643137,-718.78,0.00016438,2]
[361264636,1747404643146,-2236.74,0.00016438,2]
[361264637,1747404643155,-500.0,0.00016438,2]
[361264638,1747404643164,-400.0,0.00016438,2]
[361264639,1747404643174,-151.0,0.00016438,2]
[361264640,1747404643183,-151.0,0.00016438,2]
[361264641,1747404643193,-742.33,0.00016438,2]
[361264642,1747404643202,-1906.55,0.00016438,2]
[361264643,1747404643211,-400.0,0.00016438,2]
[361264644,1747404643221,-400.0,0.00016438,2]
[361264645,1747404643230,-929.33,0.00016438,2]
[361264646,1747404643240,-2236.57,0.00016438,2]
[361264647,1747404643249,-1378.35,0.00016438,2]
[361264648,1747404643259,-429.42,0.00016438,2]
[361264649,1747404643269,-400.0,0.00016438,2]
[361264650,1747404643279,-469.73,0.00016438,2]
[361264651,1747404643288,-14843.48,0.00016438,2]
[361264652,1747404643297,-1699.36,0.00016438,2]
[361264653,1747404643306,-1817.59,0.00016438,2]
[361264654,1747404643315,-400.0,0.00016438,2]
[361264655,1747404643325,-452.94,0.00016438,2]
[361264656,1747404643335,-1464.37,0.00016438,2]
[361264657,1747404643344,-2176.81,0.00016438,2]
[361264658,1747404643353,-400.0,0.00016438,2]
[361264659,1747404643363,-523.65,0.00016438,2]
[361264660,1747404643373,-400.0,0.00016438,2]
[361264661,1747404643382,-400.0,0.00016438,2]
[361264662,1747404643397,-976.35,0.00016438,2]
[361264663,1747404643406,-2000.0,0.00016438,2]
[361264664,1747404643416,-1701.3,0.00016438,2]
[361264665,1747404643425,-400.0,0.00016438,2]
[361264666,1747404643434,-1634.31,0.00016438,2]
[361264667,1747404643444,-2525.49,0.00016438,2]
[361264668,1747404643453,-586.45,0.00016438,2]
[361264669,1747404643463,-514.26,0.00016438,2]
[361264670,1747404643473,-500.0,0.00016438,2]
[361264671,1747404643483,-580.95,0.00016438,2]
[361264672,1747404643492,-500.0,0.00016438,2]
[361264673,1747404643502,-400.0,0.00016438,2]
[361264674,1747404643511,-500.0,0.00016438,2]
[361264675,1747404643521,-500.0,0.00016438,2]
[361264676,1747404643532,-400.00544548,0.00016438,2]
[361264677,1747404643542,-500.0,0.00016438,2]
[361264678,1747404643551,-1441.12,0.00016438,2]
[361264679,1747404643561,-632.35,0.00016438,2]
[361264680,1747404643570,-500.0,0.00016438,2]
[361264681,1747404643580,-15079.24,0.00016438,2]
[361264682,1747404643590,-400.0,0.00016438,2]
[361264683,1747404643600,-500.0,0.00016438,2]
[361264684,1747404643609,-558.86,0.00016438,2]
[361264685,1747404643619,-10130.11,0.00016438,2]
[361264686,1747404643628,-429.77,0.00016438,2]
[361264687,1747404643637,-400.0,0.00016438,2]
[361264688,1747404643646,-2889.66,0.00016438,2]
[361264689,1747404643656,-2591.79,0.00016438,2]
[361264690,1747404643665,-568.09,0.00016438,2]
[361264691,1747404643675,-808.86,0.00016438,2]
[361264692,1747404643684,-1576.53,0.00016438,2]